Cogmind - Beta 16.1 @@@ ROGUE MODE // 2026.03.08 @ 14:08:58 Player: CometVoid Result: Destroyed by G-47 Trooper with Particle Gun Performance ------------- Evolutions (2) 1000 Regions Visited (4) 800 Robots Destroyed (19) 95 Value Destroyed (292) 292 Prototype IDs (1) 20 Alien Tech Used (0) 0 Bonus (200) 200 TOTAL SCORE: 2407 Bonus ------- Entered Garrisons 200 Cogmind --------- Core Integrity 0/550 Matter 290/300 Energy 100/100 System Corruption 0% Temperature Cool (6) Movement Core (50) Location -8/Garrison Parts ------- > --- POWER (2) -------- (None) > --- PROPULSION (4) --- (None) > --- UTILITY (3) ------ Signal Interpreter > --- WEAPON (2) ------- (None) > --- INVENTORY (5) ---- Improved Ion Engine High-capacity Storage Unit Signal Interpreter Authchip [R/Combat] Light EM Pulse Cannon Peak State ------------ > --- POWER ------------ Ion Engine Light Ion Engine > --- PROPULSION ------- Flight Unit Flight Unit Flight Unit Flight Unit > --- UTILITY ---------- Sensor Array Signal Interpreter > --- WEAPON ----------- Light Assault Rifle Heavy Assault Rifle > --- INVENTORY -------- Improved Ion Engine Wheel High-capacity Storage Unit Signal Interpreter Light EM Pulse Cannon [Rating: 11] Favorites ----------- Power Ion Engine Engine Ion Engine Propulsion Flight Unit Treads Light Treads Wheel Wheel Flight Unit Flight Unit Utility Sensor Array Device Sensor Array Storage High-capacity Storage Unit Processor Signal Interpreter Hackware Authchip [R/Combat] Weapon Assault Rifle Energy Gun Improved EM Shotgun Energy Cannon Light EM Pulse Cannon Ballistic Gun Assault Rifle Special Weapon Mining Laser Build | -11 -10 -9 -8 -8 ------- Run | Yrd Mat Mat Mat Gar Slots Evolved 4 | . . 2 2 . Power 1 | . . . 1 . Propulsion 2 | . . 1 1 . Utility 1 | . . 1 . . Weapon . | . . . . . Parts Attached 38 | 11 11 7 1 8 Power 4 | 1 1 1 . 1 Engine 4 | 1 1 1 . 1 Core . | . . . . . Reactor . | . . . . . Propulsion 17 | 5 3 3 . 6 Treads 2 | 2 . . . . Leg . | . . . . . Wheel 4 | 3 1 . . . Hover . | . . . . . Flight 11 | . 2 3 . 6 Utility 10 | 3 6 . . 1 Device 4 | 2 2 . . . Storage 4 | 1 3 . . . Processor 1 | . 1 . . . Hackware 1 | . . . . 1 Protection . | . . . . . Artifact . | . . . . . Weapon 7 | 2 1 3 1 . Energy Gun 1 | . . 1 . . Energy Cannon 1 | . . 1 . . Ballistic Gun 4 | 2 . 1 1 . Ballistic Cannon . | . . . . . Launcher . | . . . . . Special Weapon 1 | . 1 . . . Impact Weapon . | . . . . . Slashing Weapon . | . . . . . Piercing Weapon . | . . . . . Special Melee Weapon . | . . . . . Unidentified Prototypes 1 | . . 1 . . Corrupted Parts 3 | . . 3 . . System Corruption 3 | . . 3 . . Parts Lost 19 | . 2 4 . 13 Power 2 | . . . . 2 Propulsion 10 | . 1 2 . 7 Utility 3 | . 1 . . 2 Weapon 4 | . . 2 . 2 Highest Loss Streak 13 | . 2 4 . 13 To Critical Strikes 1 | . . . . 1 Average Backups 8 | 5 13 4 4 4 Power . | . 1 1 . . Propulsion 2 | 3 4 1 1 . Utility 2 | . 3 1 2 2 Weapon 1 | 1 2 . 1 1 Tool/Special . | . . . . . Unused Backups 15 | 1 7 2 . 5 Power 1 | . . . . 1 Propulsion 4 | 1 2 . . 1 Utility 6 | . 2 1 . 3 Weapon 2 | . 1 1 . . Tool/Special 2 | . 2 . . . Average Slot Usage (%) 80 | . 96 65 55 63 Engine 11 | . 14 9 9 10 Wheel 12 | . 24 . . . Flight 11 | . 2 18 18 23 Device 11 | . 13 9 9 6 Storage 6 | . 12 . . . Processor 5 | . . 11 9 9 Ballistic Gun 18 | . 26 8 7 13 Special Weapon 1 | . . 5 . . Peak Build Rating 11 | 9 9 9 8 11 Average Rating 7 | 6 7 6 7 8 On Entrance 5 | . 7 6 7 7 Avg Prop Armor Cover (%) 5 | 5 . . . . Naked Turns 2 | . 2 . . . Heaviest Build 50 | 15 50 10 10 13 Greatest Support 40 | 40 20 10 10 20 Greatest Overweight (x) 4 | 1 4 1 . . Average Overweight (x) . | . 1 . . . Largest Inventory Capacity 20 | 8 20 5 5 5 Average Capacity 10 | 7 16 5 5 5 Most Carried 20 | 8 20 5 5 5 Average Carried 9 | 5 13 4 4 4 Final Capacity 8 | 8 5 5 5 5 Final Carried 8 | 8 5 4 5 5 Class Distribution -------------------- 79% | Mutant 13% | Scavenger-Mutant 6% | Scavenger-Sprinter Dominant Class ---------------- Mutant | -10/Materials Scavenger-Mutant | -9/Materials Mutant | -8/Materials Mutant | -8/Garrison Resources | -11 -10 -9 -8 -8 ----------- Run | Yrd Mat Mat Mat Gar Matter Collected 811 | 322 159 31 212 87 Remotely . | . . . . . Salvage Created 466 | 113 183 65 19 86 Parts 46 | 12 17 7 1 9 Haulers Intercepted . | . . . . . Recyclers Shooed 1 | . 1 . . . Parts Field Recycled . | . . . . . Retrieved Matter . | . . . . . Parts Self-Destructed . | . . . . . Prevented . | . . . . . Parts Restored . | . . . . . Kills | -11 -10 -9 -8 -8 ------- Run | Yrd Mat Mat Mat Gar Combat Hostiles Destroyed 13 | . 6 4 . 3 Guns 12 | . 6 3 . 3 Cannons 1 | . . 1 . . Classes Destroyed 6 | 2 3 . . 1 Worker 1 | . 1 . . . Tunneler 4 | 3 . . 1 . Recycler 1 | 1 . . . . Swarmer 9 | . 3 4 . 2 Grunt 3 | . 3 . . . Sentry 1 | . . . . 1 Best Kill Streak 6 | 2 6 3 1 3 Combat Bots Only 5 | . 5 3 . 3 Max Kills in Single Turn 1 | 1 1 1 1 1 Gunslinging . | . . . . . Exploded . | . . . . . Melee . | . . . . . Uniques/NPCs Destroyed . | . . . . . Combat | -11 -10 -9 -8 -8 -------- Run | Yrd Mat Mat Mat Gar Hostile Shots Fired 274 | . 41 57 2 174 Missed 98 | . 11 21 1 65 Hits 176 | . 30 36 1 109 Projectile 176 | . 30 36 1 109 Critical Strikes 3 | . . . . 3 Damage Taken 1698 | . 259 363 12 1064 Core 705 | . 48 97 . 560 Absorbed by Shields 129 | . . . . 129 Core Remaining (%) 85 | 100 80 75 . . Volleys Fired 44 | 7 17 11 1 8 Largest 2 | 2 2 1 1 2 Hottest 100 | 40 100 100 23 43 Shots Fired 75 | 14 33 11 1 16 Gun 72 | 14 32 9 1 16 Cannon 1 | . . 1 . . Launcher . | . . . . . Special 2 | . 1 1 . . Kinetic 68 | 14 32 5 1 16 Thermal 2 | . 1 1 . . Explosive . | . . . . . Electromagnetic 5 | . . 5 . . Robot Hit Streak 10 | 2 10 4 5 4 Robot Miss Streak 3 | 2 3 2 . 3 Penetration Max . | . . . . . Secondary Targets 1 | . . . . 1 Max Gunslinging Chain 1 | . . . . 1 Shots Hit Robots 44 | 6 22 8 1 7 Core Hits 24 | 4 11 4 1 4 Critical Kills 1 | 1 . . . . Critical Parts Destroyed 1 | . 1 . . . Critical Strikes 2 | 1 1 . . . Destroy 2 | 1 1 . . . Melee Attacks . | . . . . . Impact . | . . . . . Slashing . | . . . . . Piercing . | . . . . . Sneak Attacks . | . . . . . Combat Hostiles . | . . . . . Follow-up Attacks . | . . . . . Damage Inflicted 580 | 75 295 100 16 94 Guns 551 | 75 286 80 16 94 Cannons 20 | . . 20 . . Explosions . | . . . . . Melee . | . . . . . Ramming 9 | . 9 . . . Kinetic 505 | 75 286 34 16 94 Thermal . | . . . . . Explosive . | . . . . . Electromagnetic 66 | . . 66 . . Impact . | . . . . . Slashing . | . . . . . Piercing . | . . . . . Highest Corruption 3 | . . 3 . . Average Corruption 2 | . . 2 . . Corruption Purged . | . . . . . Corruption Blocked . | . . . . . Overload Shots . | . . . . . Overflow Damage . | . . . . . Projectiles . | . . . . . Explosions . | . . . . . Melee . | . . . . . Knockbacks . | . . . . . Impact . | . . . . . Kinetic . | . . . . . Secondary . | . . . . . Self-Inflicted Damage 4 | . 4 . . . Shots . | . . . . . Rammed 1 | . 1 . . . Targets Rammed 1 | . 1 . . . Kicked . | . . . . . Crushed . | . . . . . Highest Temperature 20 | . 20 16 . 9 Average Temperature 6 | . 12 7 . 3 Received Heat Transfer 427 | . 60 63 . 304 Siege Activations . | . . . . . Martial Activations . | . . . . . Shielding Activations . | . . . . . Robots Disrupted . | . . . . . Combat Hostiles . | . . . . . Robots Corrupted . | . . . . . Combat Hostiles . | . . . . . Parts Fried . | . . . . . Impact Corruptions . | . . . . . Robots Melted . | . . . . . Combat Hostiles . | . . . . . Parts Melted . | . . . . . Heat Transferred . | . . . . . Parts Sabotaged . | . . . . . Parts Stolen . | . . . . . Parts Stripped . | . . . . . Power Chain Reactions . | . . . . . Alert | -11 -10 -9 -8 -8 ------- Run | Yrd Mat Mat Mat Gar Maximum Alert Level . | . . . . . Low Security (%) 100 | 100 100 100 100 100 Level 1 . | . . . . . Level 2 . | . . . . . Level 3 . | . . . . . Level 4 . | . . . . . Level 5 . | . . . . . High Security . | . . . . . Max Security . | . . . . . Peak Influence 125 | 10 90 115 53 125 Initial 48 | . . 18 48 21 Average 35 | . 28 28 44 83 Influence Increases 572 | 20 191 212 5 144 Destroy 0b10 Robot/C 260 | . 120 80 . 60 Destroy 0b10 Robot/NC 30 | 20 5 . 5 . Destroy Leader 50 | . 30 10 . 10 Successful Hack 22 | . 6 2 . 14 Disable Machine 30 | . 15 15 . . Partial Spotted 45 | . . 30 . 15 Lose Combat Pursuer 135 | . 15 75 . 45 Influence Decreases 537 | 20 147 141 87 142 Entered New Map 105 | . . 26 67 12 Time Decay 247 | 20 127 80 20 . Lost Part 185 | . 20 35 . 130 Squads Dispatched 3 | . 3 . . . Investigation 1 | . 1 . . . Extermination . | . . . . . Reinforcement 2 | . 2 . . . Assault . | . . . . . Garrison . | . . . . . Intercept . | . . . . . Searches Triggered . | . . . . . Construction Impeded . | . . . . . Haulers Reinforced . | . . . . . Active Scanning Responses . | . . . . . Cargo Convoy Interrupts . | . . . . . Stealth | -11 -10 -9 -8 -8 --------- Run | Yrd Mat Mat Mat Gar Distress Signals 1 | . . 1 . . Communications Jammed . | . . . . . Distress Signals . | . . . . . Times Spotted 44 | . 12 15 1 16 Peak Tracking Total 14 | . 6 14 3 7 Tactical Retreats 4 | . 1 1 . 2 Traps | -11 -10 -9 -8 -8 ------- Run | Yrd Mat Mat Mat Gar Traps Triggered 5 | . 1 . . 4 Indirectly . | . . . . . Trap Hack Attempts . | . . . . . Triggered . | . . . . . Disarmed . | . . . . . Reprogrammed . | . . . . . Reused . | . . . . . Traps Extracted . | . . . . . Installed . | . . . . . Triggered . | . . . . . Machines | -11 -10 -9 -8 -8 ---------- Run | Yrd Mat Mat Mat Gar Machines Disabled 2 | . 1 1 . . Max in Single Turn 1 | . 1 1 . . Machines Repaired . | . . . . . Machines Dismantled . | . . . . . Machines Sabotaged . | . . . . . Overloaded Fab Kills . | . . . . . Hacking | -11 -10 -9 -8 -8 --------- Run | Yrd Mat Mat Mat Gar Machines Accessed 5 | . 2 1 1 1 Terminals 3 | . 2 . . 1 Fabricators . | . . . . . Repair Stations . | . . . . . Recycling Units . | . . . . . Scanalyzers 1 | . . 1 . . Garrison Access 1 | . . . 1 . Total Hacks 22 | . 8 12 1 1 Successful 18 | . 4 12 1 1 Failed 4 | . 4 . . . Catastrophic . | . . . . . Database Lockouts . | . . . . . Manual 3 | . 3 . . . Terminals 9 | . 8 . . 1 Fabricators . | . . . . . Repair Stations . | . . . . . Recycling Units . | . . . . . Scanalyzers 12 | . . 12 . . Garrison Access 1 | . . . 1 . Terminal Hacks 5 | . 4 . . 1 Emergency Access Points 1 | . . . . 1 Terminal Index 1 | . 1 . . . Alert Level 1 | . 1 . . . Registered Components 1 | . 1 . . . Zone Layout 1 | . 1 . . . Fabricator Hacks . | . . . . . Repair Station Hacks . | . . . . . Recycling Unit Hacks . | . . . . . Scanalyzer 12 | . . 12 . . Insert Component 5 | . . 5 . . Analyze 5 | . . 5 . . Retrieve Study 2 | . . 2 . . Garrison Access Hacks 1 | . . . 1 . Unlock Access 1 | . . . 1 . Unauthorized Hacks . | . . . . . Terminals . | . . . . . Fabricators . | . . . . . Repair Stations . | . . . . . Recycling Units . | . . . . . Scanalyzers . | . . . . . Garrison Access . | . . . . . Data Cores Recovered . | . . . . . Used . | . . . . . Hacking Detections 3 | . 1 1 1 . Full Trace Events . | . . . . . Feedback Events . | . . . . . Feedback Blocked . | . . . . . Robot Schematics Acquired . | . . . . . Robots Built . | . . . . . Authchips . | . . . . . Time . | . . . . . Total Robot Build Rating . | . . . . . Part Schematics Acquired 5 | . . 5 . . Parts Built . | . . . . . Authchips . | . . . . . Time . | . . . . . Total Part Build Rating . | . . . . . Part Studies Acquired 2 | . . 2 . . Parts Repaired . | . . . . . Time . | . . . . . Parts Recycled . | . . . . . Recycled Matter . | . . . . . Retrieved Matter . | . . . . . Retrieved Components . | . . . . . Parts Scanalyzed 5 | . . 5 . . Part Schematics Acquired 5 | . . 5 . . Parts Damaged . | . . . . . Bothacking | -11 -10 -9 -8 -8 ------------ Run | Yrd Mat Mat Mat Gar Used RIF Installer . | . . . . . Robots Hacked . | . . . . . Non-combat . | . . . . . Combat . | . . . . . Robot Hacks Applied . | . . . . . Relay Couplers Released . | . . . . . Fabnet Peak Effective % . | . . . . . Robots Rewired . | . . . . . Allies Hacked . | . . . . . Hacks Repelled . | . . . . . Allies | -11 -10 -9 -8 -8 -------- Run | Yrd Mat Mat Mat Gar Total Allies . | . . . . . Largest Group . | . . . . . Highest-Rated Group . | . . . . . Highest-Rated Ally . | . . . . . Total Orders . | . . . . . Ally Attacks . | . . . . . Total Damage . | . . . . . Kills . | . . . . . Allies Corrupted . | . . . . . Allies Melted . | . . . . . Intel | -11 -10 -9 -8 -8 ------- Run | Yrd Mat Mat Mat Gar Active Infowar (turns) 789 | 63 416 150 45 115 Sensors 702 | . 392 150 45 115 Terrain 44 | 44 . . . . Seismic 43 | 19 24 . . . Robot Analysis Total . | . . . . . Derelict Logs Recovered . | . . . . . Drone Launches . | . . . . . Drone Recoveries . | . . . . . Exploration | -11 -10 -9 -8 -8 ------------- Run | Yrd Mat Mat Mat Gar Turns Passed 933 | 123 430 171 45 164 Spaces Moved 985 | 62 264 313 99 247 Core 25 | 4 3 . . 18 Treads 28 | 28 . . . . Legs . | . . . . . Wheels 254 | 30 224 . . . Hover . | . . . . . Flight 678 | . 37 313 99 229 Fastest Speed 31 | 50 37 37 37 31 Average Speed 56 | 115 91 38 37 36 Slowest Speed 160 | 160 140 120 37 50 Overloaded Moves . | . . . . . Propulsion Burnouts . | . . . . . Robots Hopped 13 | . . 9 . 4 Potential Cave-ins . | . . . . . Cave-ins Triggered . | . . . . . Exploration Rate (%) 24 | 4 36 29 11 42 Regions Visited 4 Branch Regions . Pre-discovered Areas . | . . . . . Known Exits Taken 3 | . 1 1 1 . Unknown Exits Taken 1 | 1 . . . . Scrap Searched . | . . . . . Spaces Dug . | . . . . . Terrain Destroyed . | . . . . . Melee . | . . . . . Projectile . | . . . . . AOE . | . . . . . Terrain Rammed . | . . . . . Walls Destroyed . | . . . . . Machines Disabled . | . . . . . Actions | -11 -10 -9 -8 -8 --------- Run | Yrd Mat Mat Mat Gar Total 1259 | 96 413 342 107 301 Wait 104 | . 96 3 . 5 Move 958 | 61 263 297 98 239 Hop 9 | . . 6 . 3 Pick Up 39 | 13 16 5 2 3 Fast Attach 26 | 6 5 8 1 6 Attach 12 | 1 3 5 1 2 Detach 4 | . . 3 1 . Swap 13 | 4 7 . 1 1 Drop 17 | 4 5 4 2 2 Fire 44 | 7 17 11 1 8 Melee . | . . . . . Ram 1 | . 1 . . . Kick . | . . . . . Crush . | . . . . . Escape Stasis 32 | . . . . 32 Rewire . | . . . . . Trap . | . . . . . Miscellaneous . | . . . . . Route ------- -11/Scrapyard -10/Materials -9/Materials -8/Materials -8/Garrison (discovered 1 exit: *Mat) History --------- Turn | Location | Event 2 | -11/Scrapyard | Met Revision 17 36 | -11/Scrapyard | Discovered new exit (range 16) 124 | -11/Scrapyard | Entered Materials 305 | -10/Materials | Build established: Mutant 511 | -10/Materials | Released all parts (7) 552 | -10/Materials | Discovered new exit (range 4) 553 | -10/Materials | Identified exit to Materials 554 | -10/Materials | Entered another Materials area 554 | -9/Materials | Evolved 2 slots: Propulsion x1, Utility x1 716 | -9/Materials | Lost 4 parts (2n2w) 720 | -9/Materials | Discovered new exit (range 16) 725 | -9/Materials | Identified exit to Materials 725 | -9/Materials | Entered another Materials area 725 | -8/Materials | Evolved 2 slots: Power x1, Propulsion x1 770 | -8/Materials | Identified exit to Garrison 770 | -8/Materials | Entered Garrison 780 | -8/Garrison | Triggered checkpoint 858 | -8/Garrison | Triggered checkpoint 862 | -8/Garrison | Triggered checkpoint 906 | -8/Garrison | Discovered new exit (range 14) 909 | -8/Garrison | Triggered checkpoint 916 | -8/Garrison | Core integrity fell below 50% 919 | -8/Garrison | Identified exit to Materials 919 | -8/Garrison | Attempted to access garrison exit controls, blocked by remote lockdown 927 | -8/Garrison | Core integrity fell below 20% 934 | -8/Garrison | Destroyed by G-47 Trooper with Particle Gun Last Messages --------------- 00911_ Acquired Flight Unit+. 00911_ Critical hit (Destroy). 00911_ Flight Unit+ destroyed. 00913_ Acquired Flight Unit+. 00914_ Flight Unit+ destroyed. 00919_ EXIT=IDENTIFIED: MATERIALS 00919_ Attempting to access garrison exit controls... 00919_ Remote lockdown engaged. 00920_ Flight Unit+ destroyed. 00923_ S-10 Pest suffers critical hit (Burn). 00923_ S-10 Pest destroyed. 00927_ Authchip [R/Combat] destroyed. 00929_ Triggered Stasis Trap. 00929_ A bubble of rippling energy engulfs the area. 00929_ Field strength at 94. 00930_ Field strength at 88. 00931_ Field strength at 69. 00932_ Field strength at 63. 00933_ Field strength at 49. 00934_ Field strength at 43. Map ----- +----------------------------------------------------+ | ?????????????????????????????????????????????????? | | ?????????????????????####????????????????????????? | | ????????????????????##!!##???????????????????????? | | ????????????????????#! !#???????????????????????? | | ????????????????????#! !#???????????????????????? | | ????????????????????### ##???????????????????????? | | ?????????????????????## #????????????????????????? | | ?????????????????????+ #????????????????????????? | | ?????????????????????# #????????????????????????? | | ??????????????????+??# #????????????????????????? | | ?????????????????????# #????###########?????????? | | ?????????????##"""""## #????#""""""""""#????????? | | ?????????????# ##???#"""!!!!"""#????????? | | ???????????# + T#???#"" ""#????????? | | ???????????# ### ### ##???#"! !"#????????? | | ??????????????#"""???# #????#"! !"#????????? | | ??????????????###????# #????#"! !"#????????? | | ?????????????????????#%=#????#"! !"#????????? | | ?????????????????????# #????#" !"#????????? | | ?????????????????????# #????#" !"#????????? | | ?????????????????????# #????#"" ""#??#####?? | | ?????????????????????# #????### %#######??# #?? | | ???????????#+######### ########++########## < #?? | | ???????????# ^ sg #?? | | ???????????# ^ g s #?? | | ???????????# @ gs *% #?? | | ???????????# ###+###++######## #############?? | | ???????????# #?# ????????????# #?????????????? | | ???????????# #?#?????????????##+##?????????????? | | ???????????# #?????????????????????????????????? | | ???????????# +?????????????????????????????????? | | ?????####### #?????????????????????????????????? | | ?????# ## #?????????????????????????????????? | | ##++## ## #?????????????????????????????????? | | #?????????????????????????????????? | | +?????????????????????????????????? | | +?????????????????????????????????? | | # ## ## #?????????????????????????????????? | | # ## ## #?????????????????????????????????? | | " ????????????????????????????????? | | " #???????????????????????????????? | | " #???????????????????????????????? | | " #???????????????????????????????? | | # ## ## ###???????????????????????????????? | | # ## #? #?????????????????????????????????? | | + ????????????????????????????????? | | + ??????????????????????????????? | | # ###+#?????????????????????????????? | | # ##""""## ##?????????????????????????????????? | | # #??????? #??????????????????????????????????? | +----------------------------------------------------+ Best States ------------- Heat Dissipation 31 Energy Generation 15 Energy Capacity 275 Matter Stores 300 Matter Capacity 300 Sight Range 16 Robot Scan Range 14 Terrain Scan Range 16 Terrain Scan Density 10 Evasion (%) 63 Recoil Reduction 2 Authchip Count 2 Item Schematics ----------------- Flight Unit | -9/Materials | Scanalyzed Lrg. Storage Unit | -9/Materials | Scanalyzed Sensor Array | -9/Materials | Scanalyzed Signal Interpreter | -9/Materials | Scanalyzed Hcp. Storage Unit | -9/Materials | Scanalyzed Robot Schematics ------------------ None Fabricated ------------ Nothing Repaired ---------- Nothing Studied --------- Flight Unit | -9/Materials | Hacked Wheel | -9/Materials | Hacked Alien Tech Used ----------------- None Achievements -------------- None Challenges ------------ None Game ------ Seed ChromaticTerrorSuperbattery Manual? 0 Play Time 00:48:22 Cumulative 21.5 hours Start 2026.03.08 @ 12:49:58 End 2026.03.08 @ 14:08:58 Sessions 1 Manual Loads 0 Difficulty Rogue Special Mode None Game No. 21 Rogue 17 Adventurer 4 Explorer 0 Win Type - Total 0 Types 0/0/0/0/0/0/0/0/0/0 Lore% 10 Gallery% 15 Achievement% 17 Wizard Run 0 Options --------- Layout 0 ASCII 0 Keyboard 1 Movement Arrows Keybinds 0 Fullscreen 2 Font 32/CogWide Map View 78x50 Zoom Use 0% Tactical HUD 1 Map Filters NONE Filters NONE Steam 1 RUN: 779dcfe1-20fb-446f-9a0f-afb0bd690542